bitfinex/quotes_SOLUSD_20240808
["timestamp","ask_amount","ask_price","bid_price","bid_amount"]
[1723079202151,6.9215,144.48,144.36,45.34]
[1723079202360,37.28730949,144.55,143.96,16.2884]
[1723079202361,6.9335,144.23,143.96,16.2884]
[1723079202557,6.9361,144.18,144.01,0.17713177]
[1723079202757,65.0,144.17,143.97,17.47628098]
[1723079203060,6.9422,144.05,143.92,7.3417956]
[1723079203262,45.0,144.04,143.92,7.3417956]
[1723079203464,6.9437,144.02,143.92,7.3417956]
[1723079203768,0.17,144.03,143.92,7.3417956]
[1723079203958,0.17,144.04,143.92,7.3417956]
[1723079204155,61.535,144.14,143.93,1.38904658]
[1723079204466,6.9412,144.07,143.92,7.3417956]
[1723079204660,0.34,144.06,143.92,7.3417956]
[1723079204866,20.0,144.12,143.92,7.3417956]
[1723079205046,0.34,144.11,143.93,1.38871838]
[1723079205243,6.9404,144.09,143.92,7.3417956]
[1723079205446,0.34,144.08,143.93,1.38900465]
[1723079205670,0.34,144.08,143.92,7.3417956]
[1723079205671,0.34,144.08,143.94,1.38871821]
[1723079205853,0.34,144.08,143.92,27.3417956]
[1723079206172,20.0,144.12,143.94,20.0]
[1723079206370,0.17,144.11,143.95,1.38840935]
[1723079206552,44.19,144.2,143.96,1.38830945]
[1723079206957,28.04650311,144.19,143.96,1.38830945]
[1723079207174,14.19210311,144.19,143.97,44.19]
[1723079207351,14.19210311,144.19,143.98,65.34]
[1723079207352,6.9359,144.18,143.98,65.34]
[1723079207677,7.25650311,144.19,143.99,1.38801322]
[1723079207980,7.25650311,144.19,144.0,0.34]
[1723079208153,6.9344,144.21,144.01,45.57781773]
[1723079208357,16.3024,144.22,144.02,45.34]
[1723079208576,253.6,144.26,144.03,40.0]
[1723079208577,7.25342987,144.23,144.03,40.0]
[1723079208870,6.9339,144.22,144.04,66.72754366]
[1723079209059,6.9339,144.22,144.05,20.0]
[1723079209261,7.25285106,144.25,144.06,72.46295613]
[1723079209449,389.1,144.28,144.07,20.17]
[1723079209650,6.9334,144.23,144.08,45.17]
[1723079209857,44.19,144.29,144.08,45.17]
[1723079210054,20.79,144.29,144.09,20.17]
[1723079210279,7.25159655,144.28,144.1,45.17]
[1723079210467,14.18299655,144.28,144.11,20.17]
[1723079210774,15.7627,144.31,144.12,46.38705709]
[1723079210983,6.9296,144.31,144.13,20.17]
[1723079211284,7.24920572,144.32,144.14,45.17]
[1723079211285,6.9291,144.32,144.14,45.17]
[1723079211454,44.19,144.34,144.15,20.17]
[1723079211659,6.9285,144.33,144.15,20.17]
[1723079211855,6.9283,144.34,144.16,45.17]
[1723079212162,7.24708837,144.37,144.17,20.17]
[1723079212367,20.79,144.36,144.18,52.75856921]
[1723079212681,9.84293538,144.4,144.22,20.0]
[1723079212887,6.9251,144.41,144.23,66.55572444]
[1723079213059,0.8278956,144.43,144.24,1.38566383]
[1723079213251,0.8278956,144.43,144.25,0.34]
[1723079213466,0.8278956,144.43,144.26,1.38562259]
[1723079213676,0.8278956,144.43,144.27,0.34]
[1723079213861,7.7515956,144.43,144.28,0.17]
[1723079214067,0.8278956,144.43,144.28,0.17]
[1723079214581,0.8278956,144.43,144.28,1.38538123]
[1723079214788,0.8278956,144.43,144.29,0.34]
[1723079214969,0.8278956,144.43,144.3,0.17]
[1723079215165,0.8278956,144.43,144.29,0.17]
[1723079215360,0.8278956,144.43,144.28,65.17]
[1723079215562,0.8278956,144.43,144.29,0.17]
[1723079215892,0.8278956,144.43,144.3,6.0186]
[1723079216051,0.8278956,144.43,144.31,86.72491865]
[1723079216777,0.8278956,144.43,144.33,44.19]
[1723079217089,17.2906,144.59,144.35,20.0]
[1723079217276,6.9185,144.54,144.36,66.7244121]
[1723079217585,6.9182,144.55,144.36,66.7244121]
[1723079217789,17.2906,144.59,144.37,64.19]
[1723079218082,15.4119,144.6,144.38,66.72425042]
[1723079218286,43.43698777,144.6,144.38,65.34]
[1723079218574,7.23508777,144.6,144.42,6.5784]
[1723079218779,7.7444956,144.58,144.43,66.7239903]
[1723079218988,0.8278956,144.58,144.43,66.7239903]
[1723079219582,0.8278956,144.58,144.43,65.34]
[1723079220092,0.8278956,144.58,144.45,44.19]
[1723079220267,0.8278956,144.58,144.46,66.72354216]
[1723079220468,0.8278956,144.58,144.46,65.34]
[1723079221378,0.8278956,144.58,144.46,65.0]
[1723079221576,0.8278956,144.58,144.46,20.0]
[1723079221779,0.8278956,144.58,144.47,45.0]
[1723079221984,0.8278956,144.58,144.48,20.0]
[1723079222282,6.9183,144.55,144.43,20.0]
[1723079222582,0.8278956,144.58,144.42,6.5784]
[1723079222959,0.17,144.57,144.42,6.5784]
[1723079223159,0.34,144.57,144.42,6.5784]
[1723079223492,6.9201,144.51,144.42,6.5784]
[1723079223674,20.34,144.5,144.42,6.5784]
[1723079223873,64.98,144.49,144.28,1.38474631]
[1723079224074,6.9259,144.39,144.27,27.728545]
[1723079224371,6.9266,144.37,144.25,6.665]
[1723079224574,7.0971,144.36,144.25,6.665]
[1723079224790,0.17,144.35,144.25,6.665]
[1723079224996,0.34,144.35,144.25,6.665]
[1723079225160,6.9292,144.32,144.25,6.665]
[1723079225358,0.17,144.33,144.25,6.665]
[1723079226558,0.17,144.35,144.25,6.665]
[1723079226755,0.34,144.35,144.25,6.665]
[1723079226967,0.17,144.34,144.25,6.665]
[1723079227165,0.34,144.36,144.25,6.665]
[1723079227389,6.9282,144.34,144.25,6.665]
[1723079227683,660.0056,144.47,144.25,50.855]
[1723079227900,64.98,144.45,144.25,6.665]
[1723079228059,20.79,144.4,144.25,6.665]
[1723079228255,38.1036,144.4,144.25,6.665]
[1723079228459,20.79,144.4,144.25,6.665]
[1723079229256,20.34,144.39,144.25,6.665]
[1723079229480,0.17,144.39,144.25,6.665]
[1723079229683,6.9282,144.34,144.25,6.665]
[1723079229996,0.17,144.33,144.25,6.665]
[1723079230489,7.24602362,144.38,144.25,6.665]
[1723079230794,20.0,144.37,144.25,6.665]
[1723079231087,7.24468571,144.38,144.26,20.0]
[1723079231296,6.9262,144.38,144.26,20.0]
[1723079231782,20.79,144.34,144.25,6.665]
[1723079231973,6.9286,144.33,144.25,6.665]
[1723079232178,20.0,144.32,144.25,6.665]
[1723079232769,44.19,144.36,144.25,6.665]
[1723079232967,0.17,144.33,144.25,6.665]
[1723079233189,0.17,144.32,144.25,6.665]
[1723079233366,0.34,144.32,144.25,6.665]
[1723079233869,0.17,144.31,144.25,6.665]
[1723079234064,0.34,144.33,144.25,6.665]
[1723079234265,6.9265,144.38,144.25,6.665]
[1723079234486,20.79,144.37,144.25,6.665]
[1723079234673,27.7166,144.37,144.25,6.665]
[1723079235288,27.718,144.35,144.25,6.665]
[1723079235469,0.17,144.34,144.25,6.665]
[1723079236386,0.34,144.34,144.25,6.665]
[1723079237191,20.79,144.38,144.26,20.0]
[1723079237493,27.7176,144.35,144.26,20.0]
[1723079237797,409.89,144.35,144.26,20.0]
[1723079239395,409.89,144.35,144.25,6.665]
[1723079239396,416.8177,144.35,144.25,6.665]
[1723079239770,0.34,144.34,144.25,6.665]
[1723079243094,27.7188,144.33,144.25,6.665]
[1723079243293,0.34,144.32,144.25,6.665]
[1723079244070,20.79,144.31,144.19,6.0]
[1723079244270,20.79,144.27,144.19,6.0]
[1723079244487,0.34,144.26,144.19,6.0]
[1723079246093,20.79,144.25,144.19,6.0]
[1723079246267,0.34,144.24,144.19,6.0]
[1723079247599,389.1,144.25,144.19,6.0]
[1723079249778,20.79,144.29,144.19,6.0]
[1723079250402,27.7207,144.29,144.2,20.0]
[1723079250603,20.79,144.29,144.19,6.0]
[1723079250987,27.7205,144.29,144.19,6.0]
[1723079251302,27.7223,144.26,144.19,6.0]
[1723079251486,0.34,144.25,144.19,6.0]
[1723079252297,20.79,144.26,144.19,6.0]
[1723079252707,0.17,144.25,144.19,6.0]
[1723079252878,389.1,144.3,144.19,6.0]
[1723079253299,389.1,144.3,144.2,20.0]
[1723079254423,274.39,144.33,144.2,20.0]
[1723079254603,20.79,144.33,144.21,45.34]
[1723079254801,20.79,144.33,144.22,20.0]
[1723079255198,389.1,144.34,144.22,20.0]
[1723079255613,409.89,144.34,144.22,20.0]
[1723079256622,389.1,144.34,144.22,20.0]
[1723079256831,253.6,144.38,144.22,20.0]
[1723079256832,253.6,144.38,144.23,45.34]
[1723079257128,6.9267,144.37,144.24,20.0]
[1723079257311,260.84516427,144.38,144.25,45.34]
[1723079257627,260.84516427,144.38,144.26,20.0]
[1723079257628,281.63516427,144.38,144.26,20.0]
[1723079257831,28.03516427,144.38,144.26,20.0]
[1723079258312,7.24516427,144.38,144.27,45.17]
[1723079258514,7.24516427,144.38,144.27,45.34]
[1723079259105,20.79,144.41,144.28,26.5574]
[1723079259417,7.2435383,144.4,144.29,45.0]
[1723079259628,7.2435383,144.4,144.29,45.17]
[1723079260428,7.2435383,144.4,144.3,0.17]
[1723079260815,7.2435383,144.4,144.3,20.17]
[1723079261005,7.2435383,144.4,144.3,20.0]
[1723079261517,6.9279,144.35,144.28,6.5574]
[1723079261711,27.7165,144.38,144.28,6.5574]
[1723079261917,26.9266,144.37,144.28,6.5574]
[1723079262137,20.0,144.37,144.28,6.5574]
[1723079262299,389.1,144.39,144.28,6.5574]
[1723079262500,20.0,144.38,144.28,6.5574]
[1723079263115,6.9284,144.34,144.28,6.5574]
[1723079263315,409.1,144.38,144.28,6.5574]
[1723079263625,6.9281,144.34,144.28,6.5574]
[1723079263929,6.9266,144.37,144.28,6.5574]
[1723079264132,20.34,144.36,144.28,6.5574]
[1723079264310,27.7176,144.35,144.28,6.5574]
[1723079264636,20.17,144.36,144.28,6.5574]
[1723079265425,27.0972,144.36,144.28,6.5574]
[1723079265741,20.17,144.36,144.28,6.5574]
[1723079265914,389.1,144.38,144.28,6.5574]
[1723079266109,6.9257,144.39,144.28,6.5574]
[1723079266307,27.7162,144.38,144.29,20.0]
[1723079266635,6.9262,144.38,144.29,20.0]
[1723079266954,7.2435383,144.4,144.28,6.5574]
[1723079267230,20.79,144.39,144.28,6.5574]
[1723079267535,27.7161,144.39,144.28,6.5574]
[1723079267712,20.79,144.38,144.28,6.5574]
[1723079267908,0.17,144.37,144.28,6.5574]
[1723079268114,0.34,144.37,144.28,6.5574]
[1723079268312,20.34,144.38,144.28,6.5574]
[1723079268536,34.9588383,144.4,144.28,6.5574]
[1723079268733,34.9588383,144.4,144.29,20.0]
[1723079269222,28.0335383,144.4,144.29,20.0]
[1723079269534,34.9587383,144.4,144.29,20.0]
[1723079269924,28.0335383,144.4,144.29,20.0]
[1723079270126,34.9589383,144.4,144.29,20.0]
[1723079270322,0.34,144.39,144.29,20.0]
[1723079273128,7.2657,144.39,144.29,20.0]
[1723079273936,0.34,144.39,144.29,20.0]
[1723079274122,28.0558,144.39,144.29,20.0]
[1723079274444,28.0557,144.39,144.29,20.0]
[1723079274742,20.79,144.36,144.28,6.5574]
[1723079275036,0.34,144.35,144.28,6.5574]
[1723079275438,0.17,144.35,144.28,6.5574]
[1723079276022,20.0,144.37,144.28,6.5574]
[1723079276236,391.33564688,144.41,144.29,20.0]
[1723079276435,391.33564688,144.41,144.3,0.17]
[1723079276436,7.24491733,144.4,144.3,0.17]
[1723079276746,7.24491733,144.4,144.29,20.0]
[1723079277337,28.03491733,144.4,144.29,20.0]
[1723079277734,0.17,144.39,144.29,20.0]
[1723079278243,20.96,144.39,144.29,20.0]
[1723079278558,6.9271,144.36,144.28,6.5574]
[1723079278843,0.17,144.37,144.28,6.5574]
[1723079279050,6.9299,144.31,144.28,6.5574]
[1723079279225,0.17,144.3,144.23,6.1018]
[1723079279425,6.9305,144.29,144.23,6.1018]
[1723079279749,0.17,144.3,144.23,6.1018]
[1723079280129,0.34,144.3,144.23,6.1018]
[1723079280336,28.06,144.3,144.23,6.1018]
[1723079280652,0.34,144.3,144.23,6.1018]
[1723079280831,0.17,144.3,144.23,6.1018]
[1723079281144,389.1,144.35,144.23,6.1018]
[1723079281327,0.17,144.34,144.24,20.0]
[1723079282241,396.0265,144.38,144.25,45.0]
[1723079282455,6.9265,144.38,144.26,20.0]
[1723079282662,20.79,144.38,144.26,20.0]
[1723079282950,389.1,144.39,144.27,0.17]
[1723079283136,389.1,144.39,144.27,45.34]
[1723079283453,389.1,144.39,144.28,20.0]
[1723079283623,409.89,144.39,144.28,20.0]
[1723079284654,6.9319,144.26,144.15,13.5787]
[1723079284951,6.9329,144.24,144.15,6.6482]
[1723079285125,41.13,144.25,144.15,6.6482]
[1723079285450,20.0,144.23,144.15,6.6482]
[1723079285753,20.79,144.22,144.15,6.6482]
[1723079286052,20.17,144.25,144.15,6.6482]
[1723079286755,0.17,144.25,144.15,6.6482]
[1723079287158,20.17,144.25,144.15,6.6482]
[1723079287364,0.17,144.24,144.15,6.6482]
[1723079288352,6.9343,144.21,144.15,6.6482]
[1723079288649,0.34,144.2,144.15,6.6482]
[1723079289321,26.934,144.22,144.15,6.6482]
[1723079289526,21.13,144.21,144.15,6.6482]
[1723079289745,20.79,144.2,144.15,6.6482]
[1723079289949,27.7257,144.18,144.1,6.6493]
[1723079290132,0.17,144.17,144.1,6.6493]
[1723079290345,28.0666,144.17,144.1,6.6493]
[1723079290652,6.9382,144.13,144.07,0.8278956]
[1723079290866,0.17,144.12,144.07,0.8278956]
[1723079291036,0.34,144.12,144.07,0.8278956]
[1723079291662,0.34,144.13,144.07,0.8278956]
[1723079291862,389.1,144.15,144.07,0.8278956]
[1723079292562,0.34,144.14,144.07,0.8278956]
[1723079292957,389.27,144.15,144.07,0.8278956]
[1723079293276,389.1,144.15,144.07,0.8278956]
[1723079293656,263.38254046,144.21,144.07,0.8278956]
[1723079293963,6.9348,144.2,144.08,0.17]
[1723079294270,389.1,144.24,144.09,6.5503]
[1723079294568,389.1,144.24,144.1,65.34]
[1723079295069,389.1,144.24,144.09,6.5503]
[1723079295070,409.89,144.24,144.09,6.5503]
[1723079295247,20.79,144.2,144.09,6.5503]
[1723079295447,389.1,144.24,144.09,6.5503]
[1723079295643,6.9344,144.21,144.09,6.5503]
[1723079295843,20.0,144.2,144.09,6.5503]
[1723079296064,27.7244,144.21,144.09,6.5503]
[1723079296364,0.34,144.2,144.09,6.5503]
[1723079296568,6.9338,144.23,144.1,45.17]
[1723079296776,20.0,144.22,144.11,0.17]
[1723079297079,6.9343,144.21,144.1,45.17]
[1723079297246,20.0,144.22,144.1,45.17]
[1723079297441,389.1,144.23,144.11,0.17]
[1723079297746,389.1,144.23,144.11,20.17]
[1723079298057,389.1,144.23,144.12,45.17]
[1723079298265,20.79,144.25,144.13,20.17]
[1723079298572,6.9326,144.25,144.14,0.17]
[1723079298751,6.9326,144.25,144.14,45.34]
[1723079298951,7.25257729,144.26,144.14,45.34]
[1723079299256,9.81506097,144.3,144.15,42.7424]
[1723079299257,6.9307,144.29,144.15,42.7424]
[1723079299563,6.9307,144.29,144.16,45.34]
[1723079299767,6.9307,144.29,144.17,20.0]
[1723079299944,6.9307,144.29,144.18,45.34]
[1723079300148,398.91506097,144.3,144.18,45.34]
[1723079300557,20.0,144.29,144.18,45.34]
[1723079300767,9.81506097,144.3,144.18,45.34]
[1723079300951,389.1,144.34,144.19,26.082]
[1723079301268,28.03880898,144.34,144.2,45.34]
[1723079301467,6.929,144.32,144.2,45.34]
[1723079301684,20.79,144.32,144.19,26.082]
[1723079302010,7.24880898,144.34,144.2,0.34]
[1723079302160,6.9282,144.34,144.2,45.34]
[1723079302343,281.3175,144.36,144.21,20.0]
[1723079302657,281.3175,144.36,144.22,45.34]
[1723079302658,6.9276,144.35,144.22,45.34]
[1723079302851,6.928,144.34,144.23,20.0]
[1723079303059,20.79,144.33,144.23,20.0]
[1723079303270,27.7198,144.31,144.19,6.082]
[1723079303574,260.84774267,144.36,144.19,6.082]
[1723079303778,20.0,144.35,144.19,6.082]
[1723079304455,389.1,144.4,144.22,6.3691]
[1723079304647,389.1,144.41,144.24,16.3532]
[1723079304848,6.9254,144.4,144.25,65.34]
[1723079305163,20.79,144.4,144.27,6.3691]
[1723079305365,6.9256,144.39,144.27,6.3691]
[1723079305757,6.9271,144.36,144.27,6.3691]
[1723079306364,6.9286,144.33,144.27,6.3691]
[1723079306556,0.34,144.35,144.27,6.3691]
[1723079306752,20.34,144.35,144.27,6.3691]
[1723079306956,0.34,144.35,144.27,6.3691]
[1723079307153,6.9261,144.39,144.27,6.3691]
[1723079307479,6.9257,144.39,144.27,6.3691]
[1723079307666,6.9261,144.38,144.27,6.3691]
[1723079307866,6.9256,144.4,144.28,0.17]
[1723079308067,6.9257,144.39,144.28,45.34]
[1723079308382,6.9262,144.38,144.27,6.3691]
[1723079308880,20.79,144.4,144.27,6.3691]
[1723079309258,6.9263,144.38,144.27,6.3691]
[1723079309507,0.17,144.37,144.27,6.3691]
[1723079309683,7.2666,144.37,144.27,6.3691]
[1723079310102,20.0,144.39,144.28,0.17]
[1723079310373,20.0,144.39,144.28,45.34]
[1723079310882,20.17,144.4,144.28,45.34]
[1723079311077,0.17,144.39,144.28,45.34]
[1723079311784,0.17,144.39,144.28,0.17]
[1723079311999,0.17,144.39,144.27,6.3691]
[1723079312288,0.34,144.39,144.27,6.3691]
[1723079312583,20.0,144.4,144.27,44.09501083]
[1723079312782,389.1,144.43,144.3,36.34]
[1723079312984,389.1,144.43,144.31,65.34]
[1723079313281,396.0239,144.43,144.31,65.34]
[1723079313486,389.1,144.43,144.31,65.34]
[1723079314676,389.1,144.43,144.32,6.5002]
[1723079314899,389.1,144.43,144.34,15.3453]
[1723079315184,6.9209,144.49,144.36,36.34]
[1723079315375,398.84685891,144.52,144.37,66.72476213]
[1723079315580,389.1,144.52,144.39,36.34]
[1723079315765,389.1,144.52,144.4,45.34]
[1723079315963,396.0195,144.52,144.4,45.34]
[1723079316266,389.1,144.52,144.4,45.34]
[1723079316597,389.1,144.57,144.45,52.7355]
[1723079316771,7.7444956,144.58,144.46,46.55404713]
[1723079316971,7.2444956,144.58,144.46,46.55404713]
[1723079317168,0.3278956,144.58,144.46,45.17]
[1723079317365,0.3278956,144.58,144.46,46.55395621]
[1723079317677,0.3278956,144.58,144.48,6.3788]
[1723079318000,0.3278956,144.58,144.49,46.7237958]
[1723079318691,0.3278956,144.58,144.5,20.0]
[1723079318875,0.3278956,144.58,144.51,45.34]
[1723079319787,0.3278956,144.58,144.51,46.72342234]
[1723079319974,0.3278956,144.58,144.51,45.34]
[1723079320867,0.3278956,144.58,144.5,20.0]
[1723079321070,0.3278956,144.58,144.49,20.0]
[1723079321288,0.3278956,144.58,144.5,45.0]
[1723079321493,0.3278956,144.58,144.51,1.72343378]
[1723079321678,0.3278956,144.58,144.51,21.72343378]
[1723079321882,0.3278956,144.58,144.52,45.0]
[1723079322193,0.3278956,144.58,144.53,20.34]
[1723079322390,0.3278956,144.58,144.54,45.0]
[1723079323095,0.3278956,144.58,144.53,20.34]
[1723079323270,0.3278956,144.58,144.51,1.38337725]
[1723079323466,0.3278956,144.58,144.52,0.34]
[1723079323699,0.3278956,144.58,144.52,20.34]
[1723079323994,0.3278956,144.58,144.53,45.0]
[1723079324175,0.3278956,144.58,144.54,0.34]
[1723079325372,0.3278956,144.58,144.53,45.0]
[1723079326268,0.3278956,144.58,144.54,1.72321777]
[1723079326469,20.0,144.66,144.56,6.3407]
[1723079327081,396.0104,144.71,144.57,1.55307177]
[1723079327283,7.7377956,144.72,144.58,0.17]
[1723079327486,0.8278956,144.72,144.58,0.17]
[1723079327687,6.9118,144.68,144.57,65.17]
[1723079327882,0.8278956,144.72,144.57,65.17]
[1723079328084,6.9118,144.68,144.58,1.38293507]
[1723079328277,6.9118,144.68,144.57,65.17]
[1723079328898,6.9103,144.71,144.58,0.17]
[1723079329104,7.251,144.7,144.58,0.17]
[1723079330007,6.9114,144.69,144.58,0.17]
[1723079330415,0.34,144.7,144.57,20.0]
[1723079330620,0.17,144.7,144.57,20.0]
[1723079331316,0.34,144.71,144.57,20.0]
[1723079331492,6.9113,144.69,144.57,20.0]
[1723079331683,0.17,144.68,144.58,1.382906]
[1723079331877,0.34,144.71,144.58,45.0]
[1723079332085,6.9118,144.68,144.58,45.0]
[1723079332294,0.17,144.67,144.57,20.17]
[1723079332802,0.17,144.69,144.58,46.55293784]
[1723079333126,20.34,144.69,144.58,46.55293784]
[1723079333304,27.2513,144.69,144.59,0.17]
[1723079333612,6.9118,144.68,144.58,45.0]
[1723079333817,0.17,144.67,144.57,20.0]
[1723079334898,20.0,144.69,144.57,20.0]
[1723079335100,389.9278956,144.72,144.57,20.0]
[1723079335101,396.8377956,144.72,144.58,46.72295304]
[1723079335309,20.0,144.71,144.58,46.72295304]
[1723079335510,389.9278956,144.72,144.59,20.0]
[1723079335701,0.8278956,144.72,144.6,46.72241603]
[1723079335896,0.8278956,144.72,144.61,21.38233226]
[1723079336095,0.8278956,144.72,144.63,6.0554]
[1723079336298,0.8278956,144.72,144.64,45.17]
[1723079337018,0.8278956,144.72,144.65,0.17]
[1723079339993,0.8278956,144.72,144.65,1.55220547]
[1723079340312,0.8278956,144.72,144.66,0.17]
[1723079340513,0.8278956,144.72,144.67,1.38198584]
[1723079340728,0.8278956,144.72,144.68,1.72191022]
[1723079341013,0.8278956,144.72,144.68,46.72191022]
[1723079341308,0.8278956,144.72,144.68,45.34]
[1723079341519,0.8278956,144.72,144.68,45.0]
[1723079341890,0.8278956,144.72,144.68,46.3819095]
[1723079342099,0.8278956,144.72,144.69,0.34]
[1723079342807,0.8278956,144.72,144.69,1.72185278]
[1723079343113,0.8278956,144.72,144.67,20.0]
[1723079343335,0.8278956,144.72,144.63,42.2054]
[1723079343504,0.8278956,144.72,144.63,6.0554]
[1723079343814,0.34,144.71,144.63,6.0554]
[1723079344016,0.8278956,144.72,144.63,6.0554]
[1723079344729,0.8278956,144.72,144.65,36.15]
[1723079345030,0.8278956,144.72,144.68,36.15]
[1723079345317,0.8278956,144.72,144.69,1.55168945]
[1723079345518,0.8278956,144.72,144.64,36.15]
[1723079345718,0.8278956,144.72,144.65,20.0]
[1723079346016,0.8278956,144.72,144.64,2.22217385]
[1723079346219,0.8278956,144.72,144.64,22.22217385]
[1723079346395,0.8278956,144.72,144.64,20.0]
[1723079346818,0.8278956,144.72,144.63,6.0554]
[1723079347016,6.9104,144.71,144.63,8.28117324]
[1723079347211,7.7377956,144.72,144.63,8.28117324]
[1723079347410,0.8278956,144.72,144.63,8.28117324]
[1723079347593,0.8278956,144.72,144.63,6.0554]
[1723079347796,0.34,144.71,144.63,6.0554]
[1723079348211,7.7377956,144.72,144.63,6.0554]
[1723079348212,0.8278956,144.72,144.63,6.0554]
[1723079348732,0.17,144.71,144.63,6.0554]
[1723079348894,0.8278956,144.72,144.63,6.0554]
[1723079350418,0.8278956,144.72,144.64,66.72230017]
[1723079350595,0.8278956,144.72,144.64,102.87230017]
[1723079350796,0.8278956,144.72,144.67,36.15]
[1723079350994,0.8278956,144.72,144.68,65.17]
[1723079351219,0.8278956,144.72,144.64,65.17]
[1723079351412,0.8278956,144.72,144.65,0.17]
[1723079351923,0.8278956,144.72,144.65,1.552125]
[1723079352120,0.8278956,144.72,144.66,0.17]
[1723079352718,0.8278956,144.72,144.65,0.34]
[1723079354517,0.8278956,144.72,144.63,8.32913536]
[1723079354701,0.8278956,144.72,144.63,6.0554]
[1723079356127,0.8278956,144.72,144.64,20.0]
[1723079356629,0.8278956,144.72,144.65,36.15]
[1723079356818,0.8278956,144.72,144.66,20.0]
[1723079358207,0.8278956,144.72,144.64,20.0]
[1723079358411,0.17,144.71,144.64,20.0]
[1723079358813,0.17,144.71,144.63,6.0554]
[1723079359134,0.17,144.71,144.59,6.444]
[1723079359135,6.9118,144.68,144.59,6.444]
[1723079359434,0.17,144.67,144.54,44.82865883]
[1723079359639,20.17,144.69,144.55,1.38292619]
[1723079359939,389.27,144.71,144.57,36.15]
[1723079360743,389.27,144.71,144.58,45.34]
[1723079361105,389.1,144.71,144.6,36.15]
[1723079361442,16.0366956,144.72,144.61,45.34]
[1723079362111,16.0366956,144.72,144.62,20.0]
[1723079362314,16.0366956,144.72,144.63,45.34]
[1723079363132,16.0366956,144.72,144.62,20.0]
[1723079363324,16.0366956,144.72,144.63,0.17]
[1723079363639,0.8278956,144.72,144.63,43.90611623]
[1723079363811,0.8278956,144.72,144.64,65.34]
[1723079364819,0.8278956,144.72,144.65,1.38206652]
[1723079365032,0.8278956,144.72,144.64,20.0]
[1723079365838,0.8278956,144.72,144.66,36.15]
[1723079366041,0.8278956,144.72,144.67,66.72183303]
[1723079366915,0.8278956,144.72,144.67,65.34]
[1723079368228,0.8278956,144.72,144.67,66.7217194]
[1723079368539,0.8278956,144.72,144.68,1.38171237]
[1723079368719,389.1,144.83,144.69,37.87166853]
[1723079368928,15.3142,144.82,144.7,65.34]
[1723079370313,15.3142,144.82,144.7,45.0]
[1723079371515,36.0742,144.82,144.69,1.38136473]
[1723079371728,20.76,144.8,144.66,6.3418]
[1723079371917,6.9094,144.73,144.62,36.15]
[1723079372124,21.9613,144.72,144.61,6.4591]
[1723079372349,6.9113,144.7,144.61,6.4591]
[1723079372652,6.9113,144.7,144.56,31.834039]
[1723079372942,0.17,144.71,144.56,6.4372]
[1723079373144,52.2503,144.71,144.56,6.4372]
[1723079373444,45.34,144.71,144.57,0.17]
[1723079373621,45.34,144.71,144.57,65.34]
[1723079373819,45.34,144.71,144.57,45.34]